bitfinex-derivatives/quotes_SOLF0:USTF0_20250331
["timestamp","ask_amount","ask_price","bid_price","bid_amount"]
[1743414288321,0.05854851,123.94,123.91,32.54022283]
[1743414288713,8.12794851,123.94,123.91,32.54022283]
[1743414288909,0.05854851,123.94,123.91,32.54022283]
[1743414289221,8.12794851,123.94,123.91,32.54022283]
[1743414289416,0.05854851,123.94,123.91,32.54022283]
[1743414289818,8.0697,123.93,123.91,32.54022283]
[1743414290019,0.05854851,123.94,123.91,0.06022283]
[1743414291322,8.0701,123.93,123.91,0.06022283]
[1743414291622,0.05854851,123.94,123.91,0.06022283]
[1743414292426,8.0703,123.92,123.91,0.06022283]
[1743414295118,0.05854851,123.94,123.91,0.06022283]
[1743414295925,8.0701,123.93,123.91,0.06022283]
[1743414296427,8.0703,123.92,123.91,0.06022283]
[1743414296927,0.05854851,123.94,123.91,0.06022283]
[1743414297317,0.05854851,123.94,123.91,8.13092283]
[1743414297931,0.05854851,123.94,123.91,0.06022283]
[1743414298332,0.05854851,123.94,123.91,8.13102283]
[1743414298333,8.12784851,123.94,123.91,8.13102283]
[1743414298535,0.05854851,123.94,123.91,0.06022283]
[1743414298727,8.0701,123.93,123.91,0.06022283]
[1743414299533,8.0701,123.93,123.91,8.13112283]
[1743414299731,8.12784851,123.94,123.91,8.13112283]
[1743414300420,8.0697,123.93,123.91,0.06022283]
[1743414300624,0.05854851,123.94,123.91,0.06022283]
[1743414300823,0.05854851,123.94,123.91,14.83752665]
[1743414301427,0.05854851,123.94,123.91,8.13092283]
[1743414301631,0.05854851,123.94,123.92,9.44664572]
[1743414302028,0.05854851,123.94,123.92,17.51654572]
[1743414302234,0.05854851,123.94,123.91,0.06022283]
[1743414302532,8.0703,123.92,123.91,0.06022283]
[1743414302834,17.51694572,123.92,123.91,0.06022283]
[1743414303033,17.51694572,123.92,123.78,16.158]
[1743414303034,66.08734572,123.92,123.84,9.44664572]
[1743414303222,9.44664572,123.89,123.84,9.44664572]
[1743414303429,8.0741,123.87,123.84,71.44664572]
[1743414303630,24.14291667,123.91,123.84,62.0]
[1743414304127,0.05566958,123.89,123.86,0.05988143]
[1743414304736,8.0736,123.87,123.86,0.05988143]
[1743414306335,0.05566958,123.89,123.86,0.05988143]
[1743414307237,0.05566958,123.89,123.86,32.37988143]
[1743414307438,8.12826958,123.89,123.87,62.0]
[1743414308140,8.073,123.88,123.86,32.37988143]
[1743414308739,8.0736,123.87,123.86,32.37988143]
[1743414309736,0.05566958,123.89,123.86,32.37988143]
[1743414310338,14.83438625,123.89,123.86,0.05988143]
[1743414310638,3.1938,123.88,123.86,0.05988143]
[1743414311039,8.0736,123.87,123.86,0.05988143]
[1743414311430,0.05566958,123.89,123.86,0.05988143]
[1743414313143,8.0734,123.88,123.86,0.05988143]
[1743414313541,0.05566958,123.89,123.86,0.05988143]
[1743414313740,0.05566958,123.89,123.86,8.13398143]
[1743414314036,0.05566958,123.89,123.86,0.05988143]
[1743414314232,8.12846958,123.89,123.86,0.05988143]
[1743414314440,14.83438625,123.89,123.86,0.05988143]
[1743414314636,35.2005,123.88,123.86,0.05988143]
[1743414314839,8.0736,123.87,123.86,0.05988143]
[1743414315142,35.2005,123.88,123.86,0.05988143]
[1743414315336,35.2005,123.88,123.87,8.0736]
[1743414315542,32.18,123.88,123.86,0.05988143]
[1743414315941,8.0736,123.87,123.86,0.05988143]
[1743414316645,40.2532,123.88,123.86,0.05988143]
[1743414317137,8.0736,123.87,123.86,0.05988143]
[1743414318137,46.7029,123.88,123.86,0.05988143]
[1743414318643,38.6299,123.88,123.86,0.05988143]
[1743414318844,8.0736,123.87,123.86,0.05988143]
[1743414319340,8.0759,123.84,123.82,62.0]
[1743414319544,8.0759,123.84,123.81,8.077]
[1743414319744,14.77871667,123.87,123.79,53.18131667]
[1743414319944,8.0752,123.85,123.82,8.0764]
[1743414320146,14.77871667,123.87,123.79,53.18131667]
[1743414320346,8.0745,123.86,123.83,8.0758]
[1743414320541,0.05191243,123.85,123.82,47.17952858]
[1743414320743,32.34,123.91,123.84,14.77871667]
[1743414321249,0.05655681,123.89,123.84,14.77871667]
[1743414321440,0.05655681,123.89,123.87,8.0731]
[1743414321643,0.05655681,123.89,123.86,0.05874346]
[1743414322145,0.05655681,123.89,123.86,14.83746013]
[1743414322543,0.05655681,123.89,123.87,62.0]
[1743414323152,0.05655681,123.89,123.87,70.0732]
[1743414323353,0.05655681,123.89,123.87,62.0]
[1743414324145,0.05655681,123.89,123.87,70.0733]
[1743414324348,0.05655681,123.89,123.87,62.0]
[1743414324656,4.04235033,123.93,123.91,8.0707]
[1743414324950,4.04235033,123.93,123.88,47.03871667]
[1743414325354,8.0701,123.93,123.9,8.0712]
[1743414325752,8.1216255,123.93,123.9,8.12681265]
[1743414325954,0.0515255,123.93,123.9,0.05561265]
[1743414326650,32.3315255,123.93,123.9,0.05561265]
[1743414327052,14.77871667,123.92,123.84,50.24921667]
[1743414327263,21.02041667,123.92,123.84,50.24921667]
[1743414327553,6.2417,123.92,123.84,53.21031667]
[1743414327751,21.02041667,123.92,123.84,53.21031667]
[1743414327958,8.0727,123.89,123.86,8.0737]
[1743414328152,8.0727,123.89,123.85,62.0]
[1743414328352,8.12823902,123.89,123.86,0.05824002]
[1743414328553,8.12823902,123.89,123.87,8.0735]
[1743414328754,8.12823902,123.89,123.86,0.05824002]
[1743414329152,8.12823902,123.89,123.86,8.13204002]
[1743414329352,0.05553902,123.89,123.86,0.05824002]
[1743414329860,8.0736,123.87,123.86,0.05824002]
[1743414330667,8.0733,123.88,123.86,0.05824002]
[1743414331661,8.0736,123.87,123.86,0.05824002]
[1743414332055,8.0758,123.84,123.8,3.066]
[1743414332761,8.0763,123.83,123.81,62.0]
[1743414332958,41.7423,123.87,123.81,62.0]
[1743414333153,0.05794474,123.83,123.82,8.0763]
[1743414333352,41.7423,123.87,123.82,8.0763]
[1743414333572,0.05188679,123.84,123.81,0.05945653]
[1743414333769,8.0768,123.82,123.81,0.05945653]
[1743414334378,0.05188679,123.84,123.81,0.05945653]
[1743414334775,46.95060346,123.84,123.75,46.89871667]
[1743414335081,46.89871667,123.84,123.76,3.0904]
[1743414335485,46.89871667,123.84,123.79,8.0785]
[1743414335780,46.89871667,123.84,123.76,3.0904]
[1743414335983,0.06130155,123.83,123.8,0.06015184]
[1743414336477,0.06130155,123.83,123.81,8.077]
[1743414336672,0.06130155,123.83,123.8,0.06015184]
[1743414337373,0.06130155,123.83,123.81,8.0772]
[1743414337573,0.06130155,123.83,123.8,0.06015184]
[1743414337781,0.06130155,123.83,123.81,8.0769]
[1743414338074,8.13780155,123.83,123.8,0.06015184]
[1743414338282,0.06130155,123.83,123.8,8.13795184]
[1743414338473,0.06130155,123.83,123.8,0.06015184]
[1743414338978,0.06130155,123.83,123.81,8.0772]
[1743414339177,0.06130155,123.83,123.8,0.06015184]
[1743414339883,0.06130155,123.83,123.8,62.06015184]
[1743414340083,8.0773,123.82,123.8,70.13825184]
[1743414340279,0.06130155,123.83,123.8,0.06015184]
[1743414340680,8.0775,123.81,123.8,0.06015184]
[1743414341483,0.06130155,123.83,123.8,0.06015184]
[1743414341786,0.06130155,123.83,123.81,8.0772]
[1743414341979,8.13770155,123.83,123.8,0.06015184]
[1743414342286,0.06130155,123.83,123.8,0.06015184]
[1743414342485,8.0775,123.81,123.8,0.06015184]
[1743414342780,31.92,123.81,123.68,16.1714]
[1743414342981,31.92,123.81,123.66,535.72916135]
[1743414342982,8.0818,123.75,123.7,38.2424]
[1743414343184,31.96,123.78,123.7,35.1828]
[1743414343383,8.0806,123.77,123.74,8.0817]
[1743414343584,31.96,123.78,123.71,62.0]
[1743414343990,0.05619141,123.76,123.67,17.87121667]
[1743414344191,0.05619141,123.76,123.73,0.05870964]
[1743414344485,0.0522746,123.76,123.72,8.083]
[1743414344689,0.0522746,123.76,123.73,0.06151987]
[1743414346087,8.0821,123.74,123.73,0.06151987]
[1743414346287,0.0522746,123.76,123.73,0.06151987]
[1743414346690,8.0821,123.74,123.73,0.06151987]
[1743414346891,0.0522746,123.76,123.73,0.06151987]
[1743414347394,8.0821,123.74,123.73,0.06151987]
[1743414348494,0.0522746,123.76,123.73,0.06151987]
[1743414349088,0.0522746,123.76,123.75,8.0814]
[1743414350185,0.0522746,123.76,123.74,8.0817]
[1743414350384,0.0522746,123.76,123.73,0.06151987]
[1743414350696,0.0522746,123.76,123.75,8.0814]
[1743414350897,46.55871667,123.82,123.74,49.58611667]
[1743414351396,46.55871667,123.82,123.78,8.0791]
[1743414351397,8.0779,123.81,123.78,8.0791]
[1743414351891,46.55871667,123.82,123.74,49.58611667]
[1743414352093,0.05270378,123.81,123.78,0.06181109]
[1743414352594,8.0788,123.79,123.78,0.06181109]
[1743414352989,31.7,123.79,123.73,3.0593]
[1743414353192,8.0812,123.76,123.73,11.1417]
[1743414353793,8.0817,123.75,123.72,39.783]
[1743414354192,8.13835846,123.75,123.72,39.83561122]
[1743414354686,8.13835846,123.75,123.73,8.0826]
[1743414355094,0.05665846,123.75,123.74,8.0821]
[1743414355694,0.05665846,123.75,123.73,8.0824]
[1743414355895,0.05665846,123.75,123.72,31.75261122]
[1743414356593,0.05665846,123.75,123.74,8.0821]
[1743414357199,8.13805846,123.75,123.72,31.75261122]
[1743414357394,0.05665846,123.75,123.72,31.75261122]
[1743414357796,8.13835846,123.75,123.73,8.0826]
[1743414358196,0.05665846,123.75,123.73,8.0826]
[1743414358494,0.05665846,123.75,123.74,8.0821]
[1743414358998,0.05665846,123.75,123.73,8.0827]
[1743414359199,0.05665846,123.75,123.72,0.05261122]
[1743414359497,0.05665846,123.75,123.73,8.0827]
[1743414359694,0.05665846,123.75,123.72,0.05261122]
[1743414360598,8.13815846,123.75,123.73,8.0824]
[1743414361001,0.05665846,123.75,123.72,0.05261122]
[1743414361497,0.05665846,123.75,123.72,14.83132789]
[1743414361801,0.05665846,123.75,123.73,31.48]
[1743414362001,0.05665846,123.75,123.74,8.0821]
[1743414362401,0.05665846,123.75,123.72,8.13581122]
[1743414362802,0.05665846,123.75,123.72,0.05261122]
[1743414362996,34.48515846,123.75,123.72,0.05261122]
[1743414363193,8.0827,123.73,123.72,0.05261122]
[1743414363399,34.48515846,123.75,123.72,0.05261122]
[1743414363698,3.00515846,123.75,123.73,8.0827]
[1743414363904,0.05665846,123.75,123.72,0.05261122]
[1743414364296,8.13805846,123.75,123.73,8.0823]
[1743414364895,0.05665846,123.75,123.74,8.0821]
[1743414365097,290.74,123.84,123.73,17.73281667]
[1743414365297,8.0752,123.85,123.82,8.0763]
[1743414365501,43.4960017,123.86,123.8,31.5]
[1743414365692,58.27471837,123.86,123.8,31.5]
[1743414365893,8.0768,123.83,123.8,39.5778]
[1743414366097,708.66,123.82,123.8,0.05192165]
[1743414366300,32.36,123.81,123.72,3.1879]
[1743414366496,14.77871667,123.8,123.72,3.1879]
[1743414367408,14.77871667,123.76,123.69,2.9888]
[1743414367603,3.0008,123.75,123.67,32.46]
[1743414367906,5.9434,123.75,123.67,32.46]
[1743414368301,5.9434,123.75,123.68,62.0]
[1743414368702,0.05952219,123.73,123.68,62.0]
[1743414369208,0.05952219,123.73,123.71,8.084]
[1743414369408,0.05952219,123.73,123.7,32.46]
[1743414370410,0.05952219,123.73,123.65,32.9249331]
[1743414370612,32.42,123.75,123.68,32.44]
[1743414370807,0.05208536,123.7,123.68,32.44]
[1743414371111,0.05741132,123.7,123.68,32.44]
[1743414371508,3.2321,123.79,123.69,23.7088331]
[1743414371710,38.3434,123.8,123.7,3.029]
[1743414372006,38.3434,123.8,123.71,32.4]
[1743414372310,38.3434,123.8,123.72,70.0828]
[1743414372809,8.0812,123.76,123.75,0.05578301]
[1743414373111,0.05155184,123.77,123.75,0.05578301]
[1743414373312,8.0777,123.81,123.75,0.05578301]
[1743414373512,32.42,123.83,123.75,0.05578301]
[1743414373706,32.42,123.83,123.74,32.42]
[1743414373907,8.079,123.79,123.76,8.0804]
[1743414374106,8.079,123.79,123.77,32.42]
[1743414374307,32.42,123.83,123.77,32.42]
[1743414374508,0.05533179,123.79,123.77,32.48125632]
[1743414374910,8.0794,123.78,123.77,32.48125632]
[1743414375108,0.05533179,123.79,123.77,32.48125632]
[1743414375516,0.05533179,123.79,123.77,40.56105632]
[1743414375717,0.05533179,123.79,123.77,32.48125632]
[1743414376409,0.05533179,123.79,123.78,62.0]
[1743414376610,8.13423179,123.79,123.77,32.48125632]
[1743414376913,0.05533179,123.79,123.77,0.06125632]
[1743414377106,0.05533179,123.79,123.72,40.4631]
[1743414377308,23.7088331,123.8,123.72,40.4631]
[1743414377714,8.0817,123.75,123.72,40.4631]
[1743414377911,23.7088331,123.8,123.72,40.4631]
[1743414378108,23.7088331,123.8,123.72,32.38]
[1743414378313,0.05734952,123.77,123.72,32.38]
[1743414378511,0.05734952,123.77,123.75,0.04857327]
[1743414378713,8.0811,123.76,123.72,32.38]
[1743414378919,0.05734952,123.77,123.75,0.04857327]
[1743414379515,0.05734952,123.77,123.75,62.04857327]
[1743414379711,0.05734952,123.77,123.75,70.12967327]
[1743414380215,0.05734952,123.77,123.75,0.04857327]
[1743414380410,8.13774952,123.77,123.75,0.04857327]
[1743414380820,0.05734952,123.77,123.75,0.04857327]
[1743414381518,8.13794952,123.77,123.75,0.04857327]
[1743414381724,0.05734952,123.77,123.75,0.04857327]
[1743414382219,8.0808,123.76,123.75,0.04857327]
[1743414382614,8.0817,123.75,123.7,3.029]
[1743414383121,3.0718,123.76,123.7,35.429]
[1743414383320,3.0718,123.76,123.7,32.4]
[1743414383819,0.05444244,123.74,123.71,8.0839]
[1743414384022,0.05444244,123.74,123.7,32.4]
[1743414384217,0.05444244,123.74,123.7,8.0844]
[1743414384417,0.05444244,123.74,123.7,32.38]
[1743414384924,0.05444244,123.74,123.71,8.0837]
[1743414385419,0.05444244,123.74,123.7,32.38]
[1743414385818,0.05444244,123.74,123.73,8.0827]
[1743414386224,0.05444244,123.74,123.73,70.0827]
[1743414386617,0.05444244,123.74,123.7,32.38]
[1743414387218,8.13694244,123.74,123.71,8.0837]
[1743414387418,0.05444244,123.74,123.69,35.6089]
[1743414387821,0.05444244,123.74,123.72,8.083]
[1743414388426,8.13674244,123.74,123.72,8.083]
[1743414388824,0.05444244,123.74,123.69,35.6089]
[1743414389129,0.05444244,123.74,123.7,2.9377]
[1743414389320,8.13664244,123.74,123.72,8.083]
[1743414389722,0.05444244,123.74,123.72,70.083]
[1743414389921,0.05444244,123.74,123.69,35.6089]
[1743414390321,8.0834,123.72,123.7,8.0844]
[1743414390818,0.05444244,123.74,123.69,35.6089]
[1743414391016,0.05444244,123.74,123.7,8.0843]
[1743414391727,8.0835,123.72,123.7,8.0843]
[1743414392828,8.0835,123.72,123.7,70.0843]
[1743414393026,0.05444244,123.74,123.7,62.0]
[1743414393228,0.05444244,123.74,123.67,35.3211]
[1743414393623,8.0845,123.71,123.68,8.0854]
[1743414394023,8.14264611,123.71,123.68,8.0854]
[1743414394425,8.0847,123.7,123.68,8.0854]
[1743414394828,8.14254611,123.71,123.68,8.0854]
[1743414395127,8.14254611,123.71,123.69,8.0853]
[1743414395327,8.14254611,123.71,123.67,35.3211]
[1743414395527,8.0847,123.7,123.67,35.3211]
[1743414395732,0.05814611,123.71,123.67,35.3211]
[1743414396232,0.05814611,123.71,123.7,8.0847]
[1743414397631,0.05814611,123.71,123.68,62.0]
[1743414397831,8.0849,123.7,123.68,62.0]
[1743414398034,0.05814611,123.71,123.68,62.0]
[1743414398426,8.14244611,123.71,123.68,62.0]
[1743414398626,8.14244611,123.71,123.69,8.0852]
[1743414398829,0.05814611,123.71,123.68,62.0]
[1743414400222,0.05814611,123.71,123.69,8.0849]
[1743414400523,8.14244611,123.71,123.69,8.0849]
[1743414401134,8.14244611,123.71,123.65,6.2353]
[1743414401135,0.05814611,123.71,123.65,6.2353]
[1743414401731,8.0847,123.7,123.68,8.0856]
[1743414402633,8.0853,123.69,123.67,8.0863]
[1743414404130,0.05814611,123.71,123.66,62.0]
[1743414404335,32.0,123.72,123.65,35.0345]
[1743414404537,8.0864,123.68,123.65,43.1219]
[1743414404829,0.05789128,123.7,123.65,8.0874]
[1743414405334,0.05789128,123.7,123.64,31.88]
[1743414406031,46.68631661,123.69,123.62,6.2434]
[1743414406423,0.05221891,123.67,123.62,6.2434]
[1743414406625,31.86,123.66,123.56,290.9]
[1743414406832,31.86,123.66,123.57,54.50956603]
[1743414407033,0.05913261,123.62,123.6,8.0916]
[1743414407428,0.05913261,123.62,123.58,62.0]
[1743414407630,0.05913261,123.62,123.61,8.0914]
[1743414407931,0.05913261,123.62,123.58,62.0]
[1743414408133,8.15013261,123.62,123.59,8.0921]
[1743414408336,0.05913261,123.62,123.59,8.0921]
[1743414408836,0.05913261,123.62,123.58,93.82]
[1743414409435,0.05913261,123.62,123.61,8.0914]
[1743414413139,0.05913261,123.62,123.6,8.0916]
[1743414413337,0.05913261,123.62,123.59,31.68]
[1743414413733,0.05913261,123.62,123.61,8.0914]
[1743414415242,0.05913261,123.62,123.6,8.0916]
[1743414415432,0.05913261,123.62,123.58,62.0]
[1743414415834,0.05913261,123.62,123.59,8.0922]
[1743414416236,8.15023261,123.62,123.59,8.0922]
[1743414417341,0.05913261,123.62,123.57,3.1449]
[1743414417939,0.05913261,123.62,123.61,8.0914]
[1743414418340,8.14983261,123.62,123.57,34.6649]
[1743414418742,0.05913261,123.62,123.55,31.6]
[1743414418942,8.15023261,123.62,123.59,8.0924]
[1743414419239,0.05913261,123.62,123.55,34.7499]
[1743414419440,0.05913261,123.62,123.6,8.0917]
[1743414420141,8.14983261,123.62,123.6,8.0917]
[1743414420340,0.05913261,123.62,123.6,31.56]
[1743414420643,8.0921,123.6,123.58,31.6]
[1743414420846,0.05913261,123.62,123.55,3.1499]
[1743414421144,26.80685633,123.64,123.56,31.58]
[1743414421343,0.0586037,123.6,123.55,3.1499]
[1743414421945,8.0937,123.58,123.55,11.2447]
[1743414422351,8.0937,123.58,123.51,23.73735633]
[1743414422547,31.6,123.61,123.53,31.58]
[1743414422746,0.05782137,123.56,123.53,31.58]
[1743414423251,0.05782137,123.56,123.54,62.0]
[1743414423552,0.05782137,123.56,123.55,8.095]
[1743414428249,31.6,123.61,123.54,62.0]
[1743414428250,39.6916,123.61,123.59,8.0926]
[1743414428449,39.6916,123.61,123.54,62.0]
[1743414428646,31.6,123.61,123.54,62.0]
[1743414429552,0.0535085,123.59,123.56,0.05782137]
[1743414429752,8.0936,123.58,123.56,8.15222137]
[1743414429952,0.0535085,123.59,123.56,0.05782137]
[1743414430151,8.1465085,123.59,123.57,8.0937]
[1743414430350,0.0535085,123.59,123.56,46.30749146]
[1743414431057,0.0535085,123.59,123.58,8.0933]
[1743414431254,337.34967009,123.65,123.57,3.1447]
[1743414431748,8.0898,123.64,123.57,3.1447]
[1743414431956,337.34967009,123.65,123.57,3.1447]
[1743414432355,0.06069797,123.62,123.6,0.05645205]
[1743414432960,0.06069797,123.62,123.61,8.0914]
[1743414433151,31.54069797,123.62,123.6,0.05645205]
[1743414433454,8.0914,123.61,123.6,0.05645205]
[1743414434855,8.0941,123.57,123.54,62.0]
[1743414435060,14.84967009,123.61,123.55,8.0952]
[1743414436047,0.06147247,123.59,123.57,0.05487782]
[1743414436655,0.06147247,123.59,123.58,8.0933]
[1743414436857,0.06147247,123.59,123.57,0.05487782]
[1743414437358,8.15447247,123.59,123.57,0.05487782]
[1743414438263,8.0933,123.58,123.57,0.05487782]
[1743414438461,0.06147247,123.59,123.57,0.05487782]
[1743414438857,8.0918,123.61,123.57,0.05487782]
[1743414438858,291.08,123.65,123.57,14.90454791]
[1743414439058,291.08,123.65,123.57,21.01067009]
[1743414439260,8.0904,123.63,123.57,21.01067009]
[1743414439557,8.0904,123.63,123.6,8.0916]
[1743414439762,8.0904,123.63,123.6,39.4916]
[1743414440164,8.14446225,123.63,123.61,8.0913]
[1743414440558,8.14446225,123.63,123.6,31.45348281]
[1743414441156,0.05406225,123.63,123.6,31.45348281]
[1743414441559,0.05406225,123.63,123.61,8.091]
[1743414441760,8.14436225,123.63,123.61,8.091]
[1743414442171,8.14436225,123.63,123.6,31.45348281]
[1743414442172,0.05406225,123.63,123.6,31.45348281]
[1743414443157,8.14436225,123.63,123.61,8.091]
[1743414443563,8.14436225,123.63,123.6,31.45348281]
[1743414443564,0.05406225,123.63,123.6,31.45348281]
[1743414443759,8.0907,123.62,123.6,39.54518281]
[1743414443968,0.05406225,123.63,123.6,39.54518281]
[1743414444369,0.05406225,123.63,123.6,31.45348281]
[1743414445074,0.05406225,123.63,123.6,0.05348281]
[1743414445373,8.091,123.62,123.6,8.14518281]
[1743414447066,0.05406225,123.63,123.6,0.05348281]
[1743414448570,0.05406225,123.63,123.61,31.38]
[1743414448864,0.05406225,123.63,123.62,8.0907]
[1743414450076,0.05406225,123.63,123.61,39.4711]
[1743414450269,0.05406225,123.63,123.61,31.38]
[1743414450776,0.05406225,123.63,123.61,39.471]
[1743414451178,0.05406225,123.63,123.62,8.0907]
[1743414451870,0.05406225,123.63,123.61,31.38]
[1743414452074,0.05406225,123.63,123.6,0.05348281]
[1743414453780,8.0914,123.61,123.6,0.05348281]
[1743414453977,0.05406225,123.63,123.6,0.05348281]
[1743414454872,14.90373234,123.63,123.6,0.05348281]
[1743414455078,8.0914,123.61,123.6,0.05348281]
[1743414456483,8.0932,123.59,123.55,31.38]
[1743414456683,14.84967009,123.61,123.55,31.38]
[1743414456885,8.0936,123.58,123.56,8.0943]
[1743414457279,14.84967009,123.61,123.55,31.38]
[1743414457476,8.0924,123.6,123.57,8.0935]
[1743414457683,0.05650331,123.59,123.57,8.14814465]
[1743414458186,0.05650331,123.59,123.57,0.05464465]
[1743414458686,8.0933,123.58,123.57,0.05464465]
[1743414458885,31.38,123.58,123.5,291.04]
[1743414459181,8.0975,123.52,123.49,8.099]
[1743414459384,14.84967009,123.53,123.47,6.0814]
[1743414459684,46.22967009,123.53,123.47,6.0814]
[1743414460283,0.05481784,123.51,123.47,6.0814]
[1743414460785,0.05481784,123.51,123.5,8.0986]
[1743414460980,0.05481784,123.51,123.48,31.4]
[1743414461182,0.05481784,123.51,123.45,14.84967009]
[1743414461381,0.05481784,123.51,123.45,46.24967009]
[1743414461779,0.05481784,123.51,123.49,8.0989]
[1743414461984,0.05481784,123.51,123.45,46.24967009]
[1743414461985,0.05481784,123.51,123.46,62.0]
[1743414462385,0.05481784,123.51,123.5,8.0986]
[1743414463482,0.05481784,123.51,123.49,8.0989]
[1743414463679,0.05481784,123.51,123.48,31.4]
[1743414464083,0.05481784,123.51,123.49,14.84967009]
[1743414464287,0.05481784,123.51,123.5,8.0986]
[1743414465180,1.784e-05,123.51,123.5,8.0986]
[1743414467087,1.784e-05,123.51,123.5,70.0986]
[1743414469395,3.1767,123.57,123.56,8.0946]
[1743414469585,3.1767,123.57,123.52,14.84967009]
[1743414469983,3.1767,123.57,123.55,8.0949]
[1743414470186,18.01377009,123.61,123.54,31.4]
[1743414470494,0.06216482,123.59,123.57,8.0936]
[1743414471091,8.15486482,123.59,123.56,0.05214065]
[1743414472293,8.0934,123.58,123.56,0.05214065]
[1743414472594,8.0934,123.58,123.56,8.14644065]
[1743414472789,8.0937,123.58,123.56,0.05214065]
[1743414473089,0.06216482,123.59,123.56,0.05214065]
[1743414474289,0.06216482,123.59,123.56,8.14654065]
[1743414474490,0.06216482,123.59,123.56,0.05214065]
[1743414474689,8.094,123.57,123.56,0.05214065]
[1743414475493,8.0937,123.58,123.56,0.05214065]
[1743414476094,8.15526482,123.59,123.56,8.14624065]
[1743414476484,0.06216482,123.59,123.56,8.14624065]
[1743414476885,0.06216482,123.59,123.56,0.05214065]
[1743414477091,14.91183491,123.59,123.56,0.05214065]
[1743414477491,14.84967009,123.57,123.51,8.0977]
[1743414477688,34.6533,123.58,123.5,31.4]
[1743414477892,8.0954,123.55,123.52,8.0966]
[1743414478196,34.6533,123.58,123.5,31.4]
[1743414478592,0.0576208,123.55,123.5,31.4]
[1743414479097,0.0576208,123.55,123.51,8.0973]
[1743414479595,8.0973,123.52,123.5,39.4983]
[1743414479796,34.6533,123.58,123.5,31.4]
[1743414479987,0.05503765,123.52,123.51,8.0979]
[1743414480194,0.05252014,123.53,123.5,46.24967009]
[1743414480393,0.05252014,123.53,123.51,62.0]
[1743414480702,0.05252014,123.53,123.52,8.0973]
[1743414481193,31.4,123.6,123.52,14.84967009]
[1743414481396,8.094,123.57,123.55,8.095]
[1743414482195,0.0576012,123.57,123.55,8.14615652]
[1743414482497,0.0576012,123.57,123.55,0.05115652]
[1743414482799,8.0946,123.56,123.55,0.05115652]
[1743414484795,8.1520012,123.57,123.55,0.05115652]
[1743414485001,0.0576012,123.57,123.55,0.05115652]
[1743414485405,8.1519012,123.57,123.55,0.05115652]
[1743414485593,0.0576012,123.57,123.55,0.05115652]
[1743414485793,6.1056,123.64,123.56,14.84967009]
[1743414486093,10.87400042,123.66,123.61,14.84967009]
[1743414486301,10.87400042,123.66,123.63,14.84967009]
[1743414486500,10.87400042,123.66,123.62,34.6192]
[1743414486694,10.87400042,123.66,123.62,31.46]
[1743414487096,0.05285508,123.65,123.63,0.05223444]
[1743414488002,0.05285508,123.65,123.64,62.0]
[1743414489306,0.05285508,123.65,123.64,70.0894]
[1743414489701,10.87400042,123.7,123.64,62.0]
[1743414490209,8.0872,123.68,123.65,8.0884]
[1743414490400,20.92297009,123.71,123.63,31.42]
[1743414490602,46.28967009,123.69,123.63,31.42]
[1743414490804,8.0891,123.65,123.63,31.42]
[1743414491008,8.0891,123.65,123.62,8.0906]
[1743414491209,8.15046773,123.65,123.63,0.05981817]
[1743414491406,0.06136773,123.65,123.63,0.05981817]
[1743414491813,46.33103782,123.65,123.56,14.84967009]
[1743414492110,46.26967009,123.65,123.57,34.5992]
[1743414492311,46.26967009,123.65,123.58,8.0931]
[1743414492610,8.0917,123.61,123.58,8.0931]
[1743414492803,46.26967009,123.65,123.57,34.5992]
[1743414493012,0.05177196,123.61,123.58,0.05963085]
[1743414493314,0.05177196,123.61,123.59,62.0]
[1743414493509,8.14357196,123.61,123.59,62.0]
[1743414494008,0.05177196,123.61,123.59,70.0927]
[1743414494408,0.05177196,123.61,123.59,62.0]
[1743414494608,8.14337196,123.61,123.59,62.0]
[1743414494809,0.05177196,123.61,123.59,62.0]
[1743414495113,0.05177196,123.61,123.6,8.092]
[1743414495313,0.05177196,123.61,123.59,62.0]
[1743414495812,8.14347196,123.61,123.59,62.0]
[1743414496008,0.05177196,123.61,123.58,0.05963085]
[1743414496413,8.0927,123.59,123.58,0.05963085]
[1743414497110,46.22967009,123.59,123.52,3.0107]
[1743414497309,31.52,123.61,123.54,14.84967009]